bitfinex-derivatives/quotes_BTCF0:USTF0_20240902
["timestamp","ask_amount","ask_price","bid_price","bid_amount"]
[1725261270466,0.4410596,57794.0,57787.0,0.08]
[1725261270653,0.001,57789.0,57787.0,0.08]
[1725261271050,0.19387035,57793.0,57787.0,0.08]
[1725261271766,0.19387035,57793.0,57787.0,0.082]
[1725261272861,0.08,57792.0,57787.0,0.083]
[1725261273253,0.19851427,57791.0,57787.0,0.083]
[1725261273666,0.19851427,57791.0,57787.0,0.003]
[1725261274458,0.19851427,57791.0,57787.0,0.001]
[1725261274659,0.19851427,57791.0,57787.0,0.003]
[1725261275064,0.19851427,57791.0,57787.0,0.002]
[1725261275264,0.19851427,57791.0,57787.0,0.003]
[1725261276957,0.19851427,57791.0,57787.0,0.063569]
[1725261278562,0.19851427,57791.0,57787.0,0.062569]
[1725261278868,0.19851427,57791.0,57790.0,0.0004]
[1725261280365,0.19951427,57791.0,57790.0,0.0004]
[1725261283268,0.27951427,57791.0,57790.0,0.0004]
[1725261286171,0.27951427,57791.0,57790.0,0.05206682]
[1725261287173,0.27951427,57791.0,57790.0,0.0004]
[1725261287571,0.27951427,57791.0,57790.0,0.0520456]
[1725261288263,0.27951427,57791.0,57790.0,0.0004]
[1725261290266,0.27951427,57791.0,57790.0,0.0693688]
[1725261290780,0.27851427,57791.0,57790.0,0.0693688]
[1725261290979,0.28151427,57791.0,57790.0,0.0693688]
[1725261291174,0.28151427,57791.0,57790.0,0.0004]
[1725261291975,0.28351427,57791.0,57790.0,0.0004]
[1725261293279,0.28351427,57791.0,57790.0,0.21846792]
[1725261294171,0.28051427,57791.0,57790.0,0.13225692]
[1725261294371,0.28151427,57791.0,57790.0,0.13225692]
[1725261298678,0.27951427,57791.0,57790.0,0.13225692]
[1725261299573,0.28151427,57791.0,57790.0,0.13225692]
[1725261300079,0.28351427,57791.0,57790.0,0.13225692]
[1725261300477,0.28351427,57791.0,57790.0,0.26411385]
[1725261300672,0.28351427,57791.0,57790.0,0.13225693]
[1725261301681,0.34408027,57791.0,57790.0,0.13225693]
[1725261301883,0.41312891,57791.0,57790.0,0.08692521]
[1725261302379,0.41312891,57791.0,57790.0,0.0004]
[1725261303687,1.66470027,57791.0,57786.0,0.08652521]
[1725261303881,0.4412,57787.0,57786.0,0.08652521]
[1725261304077,0.4412,57787.0,57783.0,0.0002596]
[1725261304078,0.4412,57787.0,57784.0,0.08652521]
[1725261304282,0.060573,57784.0,57783.0,0.08678481]
[1725261304481,0.060573,57784.0,57783.0,0.21866385]
[1725261304482,0.060973,57784.0,57783.0,0.21866385]
[1725261304785,0.25049734,57784.0,57783.0,0.21866385]
[1725261304979,0.24949734,57784.0,57783.0,0.21866385]
[1725261305381,0.24949734,57784.0,57783.0,0.08678481]
[1725261305581,0.61029734,57784.0,57783.0,0.0002596]
[1725261305782,1.12945734,57784.0,57783.0,0.0002596]
[1725261306189,1.19861458,57784.0,57783.0,0.0042596]
[1725261306583,1.72945734,57784.0,57783.0,0.0042596]
[1725261306782,1.72545734,57784.0,57783.0,0.0042596]
[1725261306984,1.72545734,57784.0,57783.0,0.05612076]
[1725261307293,1.72545734,57784.0,57783.0,0.0042596]
[1725261307480,1.72645734,57784.0,57783.0,0.0102596]
[1725261307893,0.060576,57781.0,57780.0,0.05184099]
[1725261308194,0.060576,57781.0,57776.0,0.05184699]
[1725261308195,0.43240108,57781.0,57776.0,0.05184699]
[1725261308490,0.43240108,57781.0,57766.0,0.0491]
[1725261308491,0.060582,57775.0,57774.0,0.05184699]
[1725261308683,0.140982,57775.0,57774.0,0.05184699]
[1725261308885,0.060583,57774.0,57773.0,0.05184699]
[1725261309190,0.060583,57774.0,57769.0,0.06938093]
[1725261309191,0.060584,57773.0,57772.0,0.05184699]
[1725261309390,0.060586,57772.0,57771.0,0.05184699]
[1725261309688,0.060586,57772.0,57770.0,0.05184699]
[1725261309689,0.62163975,57772.0,57770.0,0.05184699]
[1725261309900,0.0004,57771.0,57770.0,0.05184699]
[1725261310091,0.62287975,57772.0,57770.0,0.05184699]
[1725261310287,0.060588,57770.0,57769.0,0.0002596]
[1725261310502,0.060988,57770.0,57769.0,0.0002596]
[1725261310693,0.26130312,57770.0,57769.0,0.0002596]
[1725261311085,0.26030312,57770.0,57769.0,0.05210659]
[1725261311286,0.26030312,57770.0,57769.0,0.0002596]
[1725261311887,0.27230312,57770.0,57769.0,0.0002596]
[1725261312482,0.27230312,57770.0,57769.0,0.0012596]
[1725261312483,0.28230312,57770.0,57769.0,0.0012596]
[1725261314088,0.28230312,57770.0,57769.0,0.05310659]
[1725261315393,0.28230312,57770.0,57769.0,0.0012596]
[1725261317693,0.060589,57769.0,57768.0,0.03810659]
[1725261317896,0.140989,57769.0,57768.0,0.03810659]
[1725261318192,0.060591,57767.0,57766.0,0.0491]
[1725261318398,0.060991,57767.0,57766.0,0.0491]
[1725261318592,0.24456968,57767.0,57766.0,0.0491]
[1725261319000,0.24356968,57767.0,57766.0,0.0491]
[1725261320592,0.25156968,57767.0,57766.0,0.0501]
[1725261321992,0.25156968,57767.0,57766.0,0.001]
[1725261322210,0.77088968,57767.0,57766.0,0.001]
[1725261322906,0.83148068,57767.0,57766.0,0.001]
[1725261323293,0.060596,57762.0,57761.0,0.0002596]
[1725261323500,0.501396,57762.0,57761.0,0.0002596]
[1725261323716,0.70119261,57762.0,57761.0,0.0002596]
[1725261324601,0.70419261,57762.0,57761.0,0.0002596]
[1725261327006,1.22355261,57762.0,57761.0,0.0002596]
[1725261327907,1.82355261,57762.0,57761.0,0.0002596]
[1725261328622,1.89295661,57762.0,57753.0,0.0036]
[1725261328907,0.4412,57754.0,57753.0,0.0036]
[1725261329509,1.16131863,57754.0,57753.0,0.0036]
[1725261329897,1.22192263,57754.0,57753.0,0.0036]
[1725261330097,1.22192263,57754.0,57753.0,0.0096]
[1725261330697,1.22192263,57754.0,57753.0,0.0036]
[1725261330907,1.22192263,57754.0,57753.0,0.0096]
[1725261331306,0.70248263,57754.0,57753.0,0.0096]
[1725261333106,1.28252663,57754.0,57753.0,0.0096]
[1725261333312,1.28252663,57754.0,57748.0,0.0002596]
[1725261333313,0.06061,57749.0,57748.0,0.0002596]
[1725261333611,0.69764991,57749.0,57748.0,0.0002596]
[1725261334604,0.69864991,57749.0,57748.0,0.0092596]
[1725261336605,0.69904991,57749.0,57748.0,0.0092596]
[1725261338610,0.060613,57746.0,57745.0,0.096]
[1725261338817,0.060618,57741.0,57740.0,0.0453]
[1725261339017,0.501818,57741.0,57740.0,0.0453]
[1725261339219,0.69249618,57741.0,57740.0,0.0453]
[1725261339909,0.69349618,57741.0,57740.0,0.0563]
[1725261341117,0.69349618,57741.0,57737.0,0.06912133]
[1725261341118,0.63487818,57741.0,57737.0,0.06912133]
[1725261341326,0.060623,57736.0,57735.0,0.0001731]
[1725261341518,0.43038105,57736.0,57735.0,0.0001731]
[1725261341730,0.61762612,57736.0,57735.0,0.0001731]
[1725261341927,0.60906807,57736.0,57735.0,0.0001731]
[1725261345418,0.06063,57730.0,57729.0,0.049]
[1725261345618,0.14103,57730.0,57729.0,0.049]
[1725261345822,0.33370948,57730.0,57729.0,0.049]
[1725261350520,0.25370948,57730.0,57729.0,0.049]
[1725261350720,0.33370948,57730.0,57729.0,0.049]
[1725261350921,0.27307948,57730.0,57729.0,0.049]
[1725261351323,0.27307948,57730.0,57729.0,0.109631]
[1725261352634,0.19307948,57730.0,57729.0,0.109631]
[1725261352932,0.19307948,57730.0,57729.0,0.049]
[1725261353431,0.19307948,57730.0,57729.0,3.719]
[1725261357630,0.19307948,57730.0,57729.0,3.80540166]
[1725261358331,0.19307948,57730.0,57729.0,3.93739109]
[1725261358528,0.19307948,57730.0,57729.0,3.719]
[1725261362236,0.060633,57727.0,57724.0,0.08640166]
[1725261362432,0.060633,57727.0,57722.0,0.09001925]
[1725261362433,0.0804,57725.0,57722.0,0.09001925]
[1725261362623,0.0804,57723.0,57722.0,0.00361759]
[1725261362825,0.08,57723.0,57721.0,0.18390166]
[1725261363023,0.0004,57722.0,57721.0,0.18390166]
[1725261363433,0.19326864,57722.0,57721.0,0.18390166]
[1725261363630,0.19326864,57722.0,57721.0,0.0975]
[1725261364228,0.25390664,57722.0,57720.0,0.0492]
[1725261364421,0.0004,57721.0,57720.0,0.0492]
[1725261364726,0.19758949,57721.0,57720.0,0.0492]
[1725261365429,0.060642,57718.0,57717.0,0.3608]
[1725261365634,0.141042,57718.0,57717.0,0.3608]
[1725261365827,0.141042,57718.0,57716.0,0.0691499]
[1725261365828,0.3410649,57718.0,57716.0,0.0691499]
[1725261366033,0.0004,57717.0,57716.0,0.0691499]
[1725261366531,0.2004229,57717.0,57715.0,0.0497]
[1725261366729,0.061044,57716.0,57715.0,0.0497]
[1725261366926,0.061044,57716.0,57714.0,0.0482]
[1725261367231,0.501845,57715.0,57712.0,0.08641079]
[1725261367436,0.501845,57715.0,57711.0,0.0458]
[1725261367624,0.0804,57712.0,57711.0,0.0458]
[1725261367939,0.33928424,57712.0,57711.0,0.0458]
[1725261368323,0.33928424,57712.0,57709.0,0.08641079]
[1725261368533,0.0004,57710.0,57709.0,0.08641079]
[1725261368939,0.18454197,57710.0,57709.0,0.21845021]
[1725261369441,0.18454197,57710.0,57709.0,0.08641079]
[1725261369646,0.18454197,57710.0,57708.0,0.13551079]
[1725261369837,0.18454197,57710.0,57709.0,0.08641079]
[1725261370139,0.18454197,57710.0,57708.0,0.0491]
[1725261370140,0.18414197,57710.0,57708.0,0.13551079]
[1725261370333,0.0004,57709.0,57708.0,0.13551079]
[1725261370548,0.0004,57709.0,57708.0,0.26754961]
[1725261370837,0.18631754,57709.0,57708.0,0.18113882]
[1725261371137,0.18631754,57709.0,57708.0,0.26749911]
[1725261371926,0.18631754,57709.0,57708.0,0.13546029]
[1725261372339,0.18631754,57709.0,57708.0,3.7191]
[1725261372534,0.18631754,57709.0,57708.0,3.80546029]
[1725261372736,0.18631754,57709.0,57708.0,3.7191]
[1725261372942,0.18631754,57709.0,57708.0,3.80546029]
[1725261373527,0.18631754,57709.0,57708.0,4.0799]
[1725261373737,0.18631754,57709.0,57708.0,3.7191]
[1725261377240,0.18631754,57709.0,57708.0,4.0799]
[1725261377436,0.18631754,57709.0,57708.0,4.16626029]
[1725261378333,0.18631754,57709.0,57708.0,4.0799]
[1725261378844,0.18631754,57709.0,57708.0,4.140553]
[1725261379044,0.18631754,57709.0,57708.0,4.22691329]
[1725261379240,0.18631754,57709.0,57708.0,4.140553]
[1725261381643,0.18631754,57709.0,57708.0,4.27258568]
[1725261383048,0.0004,57709.0,57708.0,4.79242568]
[1725261384440,0.0004,57709.0,57708.0,4.27258568]
[1725261384638,0.0004,57709.0,57708.0,4.79242568]
[1725261384850,0.0004,57709.0,57708.0,4.27258568]
[1725261385040,0.0004,57709.0,57708.0,4.79242263]
[1725261385571,0.0004,57709.0,57708.0,4.27258263]
[1725261386140,0.0004,57709.0,57708.0,4.43162263]
[1725261386345,0.25717649,57697.0,57682.0,0.00088]
[1725261386541,0.25717649,57697.0,57676.0,0.08639626]
[1725261386542,0.060684,57678.0,57676.0,0.08639626]
[1725261386763,0.060691,57672.0,57670.0,2.6e-07]
[1725261387054,0.060693,57670.0,57655.0,0.0459]
[1725261387257,0.3608,57660.0,57656.0,0.13213286]
[1725261387456,0.3608,57660.0,57655.0,0.0459]
[1725261387457,0.3608,57660.0,57657.0,0.13213286]
[1725261387648,0.3608,57660.0,57658.0,0.13213286]
[1725261387848,0.3608,57660.0,57659.0,0.13213286]
[1725261388053,0.3608,57660.0,57659.0,0.13213353]
[1725261388349,0.00026008,57668.0,57659.0,0.13213353]
[1725261388350,0.3608,57665.0,57659.0,1.25241353]
[1725261388548,0.3608,57665.0,57660.0,0.13213353]
[1725261388743,0.19222349,57664.0,57661.0,0.13213353]
[1725261389048,0.19222349,57664.0,57660.0,3.77]
[1725261389049,0.19222349,57664.0,57660.0,3.771]
[1725261389351,0.19222349,57664.0,57660.0,3.77]
[1725261389560,0.19222349,57664.0,57661.0,0.52028]
[1725261389854,0.00026008,57668.0,57662.0,0.3608]
[1725261390051,0.00026008,57668.0,57667.0,0.06887593]
[1725261390443,0.00026008,57668.0,57667.0,0.52024]
[1725261391255,0.00026008,57668.0,57667.0,1.12024]
[1725261392358,0.00026008,57668.0,57667.0,3.77]
[1725261392359,0.68782024,57668.0,57667.0,3.77]
[1725261392655,0.68782024,57668.0,57661.0,0.10009477]
[1725261392853,0.0004,57662.0,57661.0,0.10009477]
[1725261393077,0.0004,57662.0,57661.0,3.9389707]
[1725261393453,0.18438829,57662.0,57661.0,3.8664]
[1725261394061,0.18438829,57662.0,57661.0,0.0964]
[1725261394356,0.32438829,57662.0,57656.0,0.06887593]
[1725261394559,0.3612,57657.0,57656.0,0.06887593]
[1725261394766,0.30914241,57657.0,57656.0,0.06883593]
[1725261394952,0.30914241,57657.0,57651.0,0.0935]
[1725261395152,0.30914241,57657.0,57656.0,3.77]
[1725261395449,0.30874241,57657.0,57656.0,3.77]
[1725261395646,0.30874241,57657.0,57656.0,4.89032]
[1725261396361,0.30874241,57657.0,57656.0,4.29032]
[1725261396552,0.30874241,57657.0,57656.0,3.77]
[1725261397362,0.30874241,57657.0,57655.0,0.0459]
[1725261397656,0.0004,57656.0,57655.0,0.56622]
[1725261397959,0.0004,57656.0,57655.0,4.93622]
[1725261398159,0.0004,57656.0,57655.0,4.33622]
[1725261398958,0.0004,57656.0,57655.0,4.93622]
[1725261401964,0.3608,57663.0,57655.0,4.93622]
[1725261402165,0.3608,57663.0,57655.0,3.8159]
[1725261402365,0.3608,57663.0,57656.0,0.3608]
[1725261402558,0.3608,57663.0,57655.0,3.81718]
[1725261402754,0.3608,57663.0,57655.0,3.8163]
[1725261403056,0.3608,57663.0,57661.0,0.060701]
[1725261403357,0.3608,57669.0,57662.0,0.060701]
[1725261403762,0.3608,57681.0,57667.0,0.14]
[1725261403964,0.3608,57681.0,57665.0,0.3608]
[1725261403965,0.3608,57676.0,57670.0,0.3608]
[1725261404268,0.3608,57676.0,57671.0,0.0465]
[1725261406570,0.3608,57676.0,57671.0,0.107191]
[1725261407067,0.3608,57676.0,57672.0,0.10819]
[1725261407774,0.3608,57676.0,57668.0,0.00026008]
[1725261407978,0.3612,57669.0,57668.0,0.00026008]
[1725261408666,0.55518164,57669.0,57668.0,0.00026008]
[1725261410762,0.55518164,57669.0,57653.0,0.0972]
[1725261410961,0.3608,57656.0,57655.0,0.061108]
[1725261411173,0.3612,57656.0,57655.0,0.061108]
[1725261411866,0.3612,57656.0,57655.0,3.831108]
[1725261412468,0.3612,57656.0,57655.0,5.083568]
[1725261412775,0.3612,57656.0,57655.0,5.223568]
[1725261413167,0.3612,57656.0,57655.0,5.083568]
[1725261413372,0.3612,57656.0,57655.0,4.483568]
[1725261414059,0.3612,57656.0,57655.0,5.083568]
[1725261414263,0.3612,57656.0,57655.0,3.90254]
[1725261416569,0.3612,57656.0,57655.0,4.06338834]
[1725261417272,0.862,57656.0,57655.0,0.13254518]
[1725261417474,0.862,57656.0,57655.0,0.23640046]
[1725261417662,0.722,57656.0,57655.0,0.13254518]
[1725261417980,0.722,57656.0,57655.0,3.90254518]
[1725261419772,0.722,57656.0,57655.0,0.13254518]
[1725261420665,0.722,57656.0,57655.0,0.13255689]
[1725261422577,0.722,57656.0,57655.0,0.19326489]
[1725261425276,0.722,57656.0,57655.0,0.29712017]
[1725261425474,0.722,57656.0,57655.0,0.19326489]
[1725261426066,0.722,57656.0,57655.0,0.29712017]
[1725261426579,0.30046221,57656.0,57655.0,1.31358489]
[1725261427971,0.30046221,57656.0,57655.0,0.19326489]
[1725261428383,0.30046221,57656.0,57655.0,0.29703759]
[1725261428581,0.30046221,57656.0,57655.0,0.19326489]
[1725261429775,0.30046221,57656.0,57655.0,0.19689868]
[1725261429981,0.30046221,57656.0,57655.0,0.19326489]
[1725261430600,0.30046221,57656.0,57655.0,0.13255689]
[1725261434683,0.30046221,57656.0,57655.0,0.23632959]
[1725261435185,0.30046221,57656.0,57655.0,0.29703759]
[1725261435588,0.30046221,57656.0,57655.0,0.19326489]
[1725261437386,0.30046221,57656.0,57655.0,0.35410674]
[1725261438277,0.00026008,57661.0,57660.0,0.060703]
[1725261438483,0.00026008,57661.0,57660.0,0.19325989]
[1725261439778,0.00026008,57661.0,57660.0,0.2972337]
[1725261440084,0.00026008,57661.0,57660.0,0.13255689]
[1725261440286,0.00026008,57661.0,57660.0,0.23653235]
[1725261440682,0.00026008,57661.0,57660.0,0.13255689]
[1725261441385,0.00026008,57661.0,57660.0,0.19325989]
[1725261441783,0.00026008,57661.0,57660.0,0.35409553]
[1725261446692,0.00026008,57661.0,57660.0,0.35775617]
[1725261448284,0.00026008,57661.0,57660.0,0.35773608]
[1725261448898,0.00026008,57661.0,57660.0,0.19690165]
[1725261450692,0.00026008,57661.0,57660.0,0.19324101]
[1725261453387,0.70251849,57661.0,57660.0,0.13253801]
[1725261453590,0.76322049,57661.0,57660.0,0.13253801]
[1725261453790,1.36322049,57661.0,57660.0,0.08705586]
[1725261453994,1.36322049,57661.0,57660.0,0.0004]
[1725261454203,0.76322049,57661.0,57660.0,0.0004]
[1725261455606,1.41458088,57661.0,57660.0,0.0004]
[1725261455790,0.81458088,57661.0,57660.0,0.0004]
[1725261456297,0.18223849,57661.0,57660.0,0.0004]
[1725261456703,0.18223849,57661.0,57660.0,0.13254973]
[1725261457501,0.18223849,57661.0,57660.0,0.17954973]
[1725261462299,0.00026008,57661.0,57660.0,0.34038803]
[1725261462600,0.00026008,57661.0,57660.0,0.34038441]
[1725261462799,0.00026008,57661.0,57660.0,0.17954973]
[1725261464094,0.00026008,57661.0,57660.0,0.24025273]
[1725261464601,0.00026008,57661.0,57660.0,0.40108468]
[1725261465295,0.00026008,57661.0,57660.0,0.76188468]
[1725261465599,0.3608,57670.0,57660.0,0.40108468]
[1725261465806,0.3608,57670.0,57669.0,0.0004]
[1725261466109,0.55690642,57670.0,57669.0,0.1325296]
[1725261466599,0.55690642,57670.0,57669.0,0.2364878]
[1725261466905,0.00026008,57675.0,57669.0,0.1325296]
[1725261467113,0.00026008,57675.0,57674.0,0.0004]
[1725261467406,0.19491139,57675.0,57674.0,0.1325296]
[1725261468295,0.19491139,57675.0,57674.0,0.21910647]
[1725261468801,0.19491139,57675.0,57674.0,0.0004]
[1725261469391,1.31507139,57675.0,57674.0,0.0004]
[1725261469605,1.31507139,57675.0,57674.0,0.06966541]
[1725261469799,1.37575839,57675.0,57674.0,0.0004]
[1725261469996,1.37575839,57675.0,57674.0,0.06966519]
[1725261470706,1.37575839,57675.0,57674.0,0.0004]
[1725261470908,1.42711878,57675.0,57674.0,0.0004]
[1725261471099,1.37575839,57675.0,57674.0,0.0004]
[1725261471301,0.77575839,57675.0,57674.0,0.0004]
[1725261471610,0.25559839,57675.0,57674.0,0.0004]
[1725261473494,0.77575839,57675.0,57674.0,0.0004]
[1725261474209,0.25559839,57675.0,57674.0,0.0004]
[1725261474509,0.37559839,57675.0,57674.0,0.0004]
[1725261475109,0.89575839,57675.0,57674.0,0.0004]
[1725261475304,0.37559839,57675.0,57674.0,0.0004]
[1725261479812,0.25559839,57675.0,57674.0,0.0004]
[1725261481009,0.19491139,57675.0,57674.0,0.0004]
[1725261482302,0.25559839,57675.0,57674.0,0.0004]
[1725261482713,0.34559839,57675.0,57674.0,0.0004]
[1725261484706,0.28491139,57675.0,57674.0,0.0004]
[1725261484926,0.28491139,57675.0,57674.0,0.21909828]
[1725261485111,0.19491139,57675.0,57674.0,0.13252141]
[1725261485710,0.00026008,57675.0,57674.0,0.13252141]
[1725261486811,0.00026008,57675.0,57674.0,0.43714228]
[1725261487009,0.00026008,57675.0,57674.0,0.33320941]
[1725261487419,0.00026008,57675.0,57674.0,0.43714228]
[1725261488212,0.00026008,57675.0,57674.0,0.44078918]
[1725261489109,0.00026008,57675.0,57674.0,0.33685631]
[1725261490023,0.00026008,57675.0,57674.0,0.44078918]
[1725261490208,0.00026008,57675.0,57674.0,0.19685631]
[1725261492320,0.00026008,57675.0,57674.0,0.19683672]
[1725261493418,0.00026008,57675.0,57674.0,0.24008159]
[1725261493620,0.00026008,57675.0,57674.0,0.13614872]
[1725261494016,0.00026008,57675.0,57674.0,0.24008159]
[1725261494725,0.00026008,57675.0,57674.0,0.13614872]
[1725261499418,0.75471944,57675.0,57674.0,0.13250182]
[1725261499624,0.75471944,57675.0,57674.0,0.21902133]
[1725261499929,0.75471944,57675.0,57674.0,0.0004]
[1725261503820,0.75471944,57675.0,57674.0,0.06963444]
[1725261504215,0.75837343,57675.0,57674.0,0.0004]
[1725261504926,0.75837343,57675.0,57674.0,0.06963444]
[1725261507532,0.75837343,57675.0,57674.0,0.0004]
[1725261507723,0.75837343,57675.0,57674.0,0.06963444]
[1725261508230,0.75837343,57675.0,57674.0,0.0004]
[1725261508826,0.75471944,57675.0,57674.0,0.0004]
[1725261509030,0.75471944,57675.0,57674.0,0.06963444]
[1725261509234,0.75471944,57675.0,57674.0,0.0004]
[1725261513932,0.69471944,57675.0,57674.0,0.0004]
[1725261515129,0.63403244,57675.0,57674.0,0.0004]
[1725261519040,0.63403244,57675.0,57674.0,0.00405283]
[1725261519531,0.63403244,57675.0,57674.0,0.09057234]
[1725261520735,0.63403244,57675.0,57674.0,0.0004]
[1725261521036,0.63403244,57675.0,57674.0,0.08691951]
[1725261522130,0.63403244,57675.0,57674.0,0.21904031]
[1725261524030,0.63403244,57675.0,57674.0,0.1325208]
[1725261524536,0.63403244,57675.0,57674.0,0.21911681]
[1725261525130,0.63403244,57675.0,57674.0,0.1325208]
[1725261525539,0.55403244,57675.0,57674.0,0.1325208]
[1725261528348,0.63403244,57675.0,57674.0,0.1325208]
[1725261529643,0.69471944,57675.0,57674.0,0.1325208]
[1725261530244,0.69471944,57675.0,57674.0,0.21918626]
[1725261530944,0.69471944,57675.0,57674.0,0.08706546]
[1725261532848,0.74607983,57675.0,57674.0,0.0004]
[1725261533747,0.69471944,57675.0,57674.0,0.0004]
[1725261534143,0.74607983,57675.0,57674.0,0.0004]
[1725261535249,0.69471944,57675.0,57674.0,0.08706546]
[1725261535750,0.74607983,57675.0,57674.0,0.0004]
[1725261535945,0.69471944,57675.0,57674.0,0.0004]
[1725261537653,0.74653593,57675.0,57674.0,0.0004]
[1725261537951,0.69471944,57675.0,57674.0,0.0004]
[1725261538350,0.69471944,57675.0,57674.0,0.08706546]
[1725261538948,0.69471944,57675.0,57674.0,0.0004]
[1725261547057,0.74653059,57675.0,57674.0,0.0004]
[1725261548859,0.69471944,57675.0,57674.0,0.08706546]
[1725261549356,0.74653059,57675.0,57674.0,0.08706546]
[1725261549750,0.69471944,57675.0,57674.0,0.08706546]
[1725261550051,0.74653059,57675.0,57674.0,0.0004]
[1725261551555,0.69471944,57675.0,57674.0,0.0004]
[1725261552063,0.74653346,57675.0,57674.0,0.0004]
[1725261552560,0.69471944,57675.0,57674.0,0.0004]
[1725261553656,0.74653278,57675.0,57674.0,0.0004]
[1725261554261,0.69471944,57675.0,57674.0,0.0004]
[1725261555353,0.61471944,57675.0,57674.0,0.0004]
[1725261555665,0.61471944,57675.0,57674.0,0.21919559]
[1725261555666,0.66653899,57675.0,57674.0,0.21919559]
[1725261555864,0.74653899,57675.0,57674.0,0.13253013]
[1725261556363,0.69471944,57675.0,57674.0,0.13253013]
[1725261557161,0.69471944,57675.0,57674.0,0.13252482]
[1725261558969,0.74653899,57675.0,57674.0,0.13252482]
[1725261560160,0.69471944,57675.0,57674.0,0.13252482]
[1725261560470,0.74653899,57675.0,57674.0,0.13252482]
[1725261560860,0.69471944,57675.0,57674.0,0.21924915]
[1725261561169,1.90267296,57675.0,57672.0,0.08672534]
[1725261561468,1.90267296,57675.0,57665.0,0.0451]
[1725261561469,0.060695,57668.0,57667.0,0.08673158]
[1725261561764,0.140696,57667.0,57666.0,0.08673158]
[1725261561959,0.261096,57667.0,57666.0,0.08673158]
[1725261562160,0.44319442,57667.0,57665.0,0.0451]
[1725261562466,0.3612,57666.0,57665.0,0.0451]
[1725261562767,0.71477136,57666.0,57665.0,0.0451]
[1725261563363,0.66297977,57666.0,57665.0,0.0451]
[1725261564758,0.66662097,57666.0,57665.0,0.0451]
[1725261567969,0.72731797,57666.0,57665.0,0.0451]
[1725261571266,1.24755797,57666.0,57665.0,0.0451]
[1725261571957,0.72731797,57666.0,57665.0,0.0451]
[1725261573868,1.08811797,57666.0,57665.0,0.0451]
[1725261574571,1.16811797,57666.0,57665.0,0.0451]
[1725261576973,1.10742097,57666.0,57665.0,0.0451]
[1725261579376,0.98742097,57666.0,57665.0,0.0451]
[1725261579575,0.90742097,57666.0,57665.0,0.0451]
[1725261580170,0.90377977,57666.0,57665.0,0.0451]
[1725261580368,0.3612,57666.0,57665.0,0.56534]
[1725261581176,0.3612,57666.0,57665.0,0.69747163]
[1725261581583,0.3612,57666.0,57665.0,0.75816963]
[1725261582478,0.3612,57666.0,57665.0,0.69747163]
[1725261585277,0.3612,57666.0,57665.0,0.17723163]
[1725261588581,0.3612,57666.0,57665.0,0.28104452]
[1725261589983,0.3612,57666.0,57665.0,1.35816963]
[1725261590180,0.0004,57666.0,57665.0,1.54609944]
[1725261590375,0.3608,57671.0,57665.0,1.48540144]
[1725261590683,0.3608,57671.0,57670.0,0.0004]
[1725261590880,0.3608,57671.0,57670.0,0.18173163]
[1725261591585,0.31742499,57671.0,57670.0,0.18173163]
[1725261592279,0.64027115,57671.0,57670.0,0.18173163]
[1725261593073,0.64027115,57671.0,57670.0,0.26830644]
[1725261593785,0.64027115,57671.0,57670.0,0.0496]
[1725261595179,0.64027115,57671.0,57670.0,0.0004]
[1725261596183,0.69201909,57671.0,57670.0,0.0004]
[1725261597379,0.64027115,57671.0,57670.0,0.0004]
[1725261598688,1.04444616,57671.0,57670.0,0.0004]
[1725261599080,0.00400712,57675.0,57670.0,0.0004]
[1725261599081,0.05176805,57673.0,57670.0,0.29910925]
[1725261599280,0.00026008,57675.0,57674.0,0.060688]
[1725261599486,0.00026008,57675.0,57674.0,0.35401267]
[1725261599788,0.08026008,57675.0,57674.0,4.06292467]
[1725261599979,0.73259208,57675.0,57674.0,0.21875466]
[1725261600179,0.73259208,57675.0,57674.0,0.13212894]
[1725261600384,0.73259208,57675.0,57674.0,0.21875371]
[1725261600794,0.65259208,57675.0,57674.0,0.21875371]
[1725261600983,0.61259208,57675.0,57674.0,0.21875371]
[1725261601184,0.69259208,57675.0,57674.0,0.21875371]
[1725261601383,0.69259208,57675.0,57673.0,0.086626]
[1725261601384,0.73259208,57675.0,57673.0,0.086626]
[1725261601593,0.73259208,57675.0,57674.0,0.086626]
[1725261601886,0.73259208,57675.0,57673.0,0.086626]
[1725261602087,0.73259208,57675.0,57674.0,0.086626]
[1725261602393,0.61259208,57675.0,57674.0,0.21875314]
[1725261602584,0.61259208,57675.0,57674.0,0.13212714]
[1725261603212,0.69259208,57675.0,57674.0,0.13212714]
[1725261603386,0.70259208,57675.0,57674.0,0.13212714]
[1725261603587,0.69259208,57675.0,57674.0,0.13212714]
[1725261604191,0.69259208,57675.0,57674.0,0.13212375]
[1725261605995,0.61259208,57675.0,57674.0,0.13212375]
[1725261607495,0.61259208,57675.0,57672.0,0.08704113]
[1725261609689,0.61259208,57675.0,57673.0,0.21876158]
[1725261609998,0.61259208,57675.0,57673.0,0.08664113]
[1725261610596,0.55190508,57675.0,57673.0,0.08664113]
[1725261610901,0.55190508,57675.0,57674.0,0.21876378]
[1725261611796,0.55190508,57675.0,57674.0,0.08664113]
[1725261612302,0.55190508,57675.0,57673.0,0.08664113]
[1725261613094,0.68190508,57675.0,57673.0,0.08664113]
[1725261614602,0.68190508,57675.0,57674.0,0.13212499]
[1725261615302,0.55190508,57675.0,57674.0,0.13212499]
[1725261616497,1.07206508,57675.0,57670.0,0.10394721]
[1725261616689,0.121396,57665.0,57664.0,8e-08]
[1725261616892,0.551498,57665.0,57664.0,0.08666492]
[1725261617090,0.551498,57665.0,57664.0,8e-08]
[1725261617091,0.87440304,57665.0,57664.0,8e-08]
[1725261617395,1.39464304,57665.0,57664.0,8e-08]
[1725261618307,0.87440304,57665.0,57664.0,8e-08]
[1725261620202,0.74804756,57665.0,57664.0,8e-08]
[1725261622996,0.60440304,57665.0,57664.0,8e-08]
[1725261623194,0.60480304,57665.0,57664.0,8e-08]
[1725261624105,0.74480304,57665.0,57664.0,8e-08]
[1725261625496,1.10560304,57665.0,57664.0,8e-08]
[1725261627206,1.10560304,57665.0,57664.0,0.06918987]
[1725261627715,1.62584304,57665.0,57664.0,0.06918987]
[1725261627900,1.62584304,57665.0,57664.0,8e-08]
[1725261628211,1.73584304,57665.0,57664.0,8e-08]
[1725261629201,1.21560304,57665.0,57664.0,8e-08]
[1725261629507,0.49400304,57665.0,57664.0,8e-08]
[1725261629706,1.21560304,57665.0,57664.0,0.05188697]
[1725261629909,1.27630104,57665.0,57664.0,0.05188697]
[1725261631799,1.27630104,57665.0,57664.0,8e-08]